bitfinex-derivatives/quotes_ETHF0:USTF0_20250116
["timestamp","ask_amount","ask_price","bid_price","bid_amount"]
[1737068661617,0.03137305,3305.8,3305.7,49.29596664]
[1737068661913,0.03137305,3305.8,3305.7,46.08816664]
[1737068662118,0.03137305,3305.8,3305.7,44.95563332]
[1737068662511,0.03137305,3305.8,3305.7,47.29716664]
[1737068662708,0.03137305,3305.8,3305.7,44.95563332]
[1737068663516,0.03137305,3305.8,3305.7,43.14153332]
[1737068663718,3.84425305,3305.8,3305.7,44.35053332]
[1737068664019,3.84425305,3305.8,3305.7,3.55053332]
[1737068664523,3.23917305,3305.8,3305.7,44.95563332]
[1737068665023,3.23917305,3305.8,3305.7,43.74663332]
[1737068665220,3.23917305,3305.8,3305.7,44.96763332]
[1737068665919,0.03137305,3305.8,3305.7,47.30916664]
[1737068666219,0.03137305,3305.8,3305.7,47.57033332]
[1737068666413,0.03137305,3305.8,3305.7,43.14153332]
[1737068666414,0.63645305,3305.8,3305.7,43.14153332]
[1737068666614,0.03137305,3305.8,3305.7,43.74663332]
[1737068666815,0.03137305,3305.8,3305.7,46.08816664]
[1737068667121,0.03137305,3305.8,3305.7,43.74663332]
[1737068668520,0.63645305,3305.8,3305.7,43.14153332]
[1737068668719,0.03137305,3305.8,3305.7,43.74663332]
[1737068669213,0.03137305,3305.8,3305.7,43.14153332]
[1737068669419,1.63457305,3305.8,3305.2,5.54933332]
[1737068669622,0.8396,3305.7,3305.2,5.54933332]
[1737068669818,0.60513,3305.6,3305.5,2.34153332]
[1737068670023,0.03137305,3305.8,3305.7,0.6051]
[1737068670720,0.63645305,3305.8,3305.7,40.8]
[1737068670922,0.03137305,3305.8,3305.7,40.8]
[1737068671224,0.63645305,3305.8,3305.7,41.4051]
[1737068671521,0.03137305,3305.8,3305.7,41.4051]
[1737068672224,0.03137305,3305.8,3305.7,40.8]
[1737068672416,0.60512,3305.6,3305.5,2.94666332]
[1737068672617,0.03137305,3305.8,3305.5,2.34153332]
[1737068672821,0.63647305,3305.8,3305.7,0.6051]
[1737068673122,0.03137305,3305.8,3305.7,0.6051]
[1737068673517,0.63645305,3305.8,3305.7,0.6051]
[1737068673718,0.03137305,3305.8,3305.7,0.6051]
[1737068673927,0.03137305,3305.8,3305.7,41.4051]
[1737068674315,0.03137305,3305.8,3305.7,42.2262]
[1737068674730,0.63645305,3305.8,3305.7,40.8]
[1737068675028,0.03137305,3305.8,3305.7,41.4051]
[1737068675722,0.03137305,3305.8,3305.7,42.6261]
[1737068675923,0.03137305,3305.8,3305.7,40.8]
[1737068676116,0.63645305,3305.8,3305.7,42.021]
[1737068678321,0.63645305,3305.8,3305.7,40.8]
[1737068678526,0.60521,3305.2,3305.1,1.8262]
[1737068678921,0.60521,3305.2,3305.1,42.6262]
[1737068679120,0.63658305,3305.2,3305.1,42.021]
[1737068679322,0.60532,3304.6,3304.5,0.6053]
[1737068679622,0.60532,3304.5,3304.4,1.82634]
[1737068679823,0.60532,3304.5,3304.4,42.62634]
[1737068680027,0.60532,3304.5,3304.4,42.021]
[1737068680323,0.60532,3304.5,3304.4,42.62634]
[1737068680324,0.63669305,3304.5,3304.4,42.62634]
[1737068680525,0.63669305,3304.5,3304.4,40.8]
[1737068680716,0.03137305,3304.5,3304.4,41.40534]
[1737068680920,0.03137305,3304.5,3304.4,42.16674]
[1737068681115,0.03137305,3304.5,3304.4,42.93124]
[1737068682632,0.03137305,3304.5,3304.4,44.15224]
[1737068683129,0.03137305,3304.5,3304.4,43.5469]
[1737068683431,0.03137305,3304.5,3304.4,44.15224]
[1737068684332,0.03137305,3304.5,3304.4,44.94334]
[1737068685729,1.5715,3305.2,3304.4,44.94334]
[1737068685934,0.6053,3304.7,3304.4,2.7469]
[1737068686135,0.60531,3304.6,3304.5,0.60531]
[1737068686434,0.6053,3304.6,3304.5,41.40531]
[1737068686633,0.6053,3304.6,3304.5,40.8]
[1737068687232,0.6053,3304.6,3304.5,41.40532]
[1737068687640,3.2078,3305.1,3304.5,40.8]
[1737068688032,0.6053,3304.6,3304.5,40.8]
[1737068688935,3.2078,3304.7,3304.5,40.8]
[1737068689135,3.2078,3304.7,3304.6,0.6053]
[1737068690052,3.2078,3304.7,3304.5,40.8]
[1737068690240,1.4367,3304.6,3304.5,40.8]
[1737068690738,1.4367,3304.6,3304.5,41.40532]
[1737068691437,1.4367,3304.6,3304.5,40.8]
[1737068691637,1.4367,3304.6,3304.5,41.40532]
[1737068692135,0.8314,3304.6,3304.5,41.40532]
[1737068692638,3.2078,3304.7,3304.6,0.6053]
[1737068693437,0.60527,3304.8,3304.7,0.60529]
[1737068693645,3.9673,3305.1,3304.5,40.8]
[1737068693846,0.60528,3304.8,3304.7,0.60528]
[1737068694343,3.2078,3305.5,3304.6,5.54933332]
[1737068694537,0.60518,3305.3,3305.2,0.60518]
[1737068694736,0.60517,3305.4,3305.3,0.60517]
[1737068695543,0.60518,3305.3,3305.2,1.221]
[1737068695730,1.51299,3305.2,3304.5,42.03]
[1737068695937,0.6053,3304.7,3304.6,0.60529]
[1737068696638,3.81308,3304.8,3304.7,0.60529]
[1737068696840,3.2078,3304.8,3304.7,0.60529]
[1737068697141,3.2078,3304.8,3304.5,42.03]
[1737068697333,0.60529,3304.7,3304.6,0.6053]
[1737068697838,3.2078,3304.8,3304.5,40.8]
[1737068697839,0.6053,3304.6,3304.5,40.8]
[1737068698034,0.60529,3304.7,3304.5,40.8]
[1737068698239,0.6053,3304.6,3304.5,40.8]
[1737068698638,3.2078,3304.8,3304.2,4.4378]
[1737068698831,3.2078,3304.8,3304.2,6.77933332]
[1737068699034,0.60529,3304.7,3304.6,0.6053]
[1737068699335,0.60529,3304.7,3304.6,41.4053]
[1737068700534,0.60529,3304.7,3304.6,40.8]
[1737068700740,3.2078,3304.8,3304.6,40.8]
[1737068700942,3.81308,3304.8,3304.7,0.60529]
[1737068701634,3.2078,3304.8,3304.7,0.60529]
[1737068702043,0.60529,3304.7,3304.6,40.8]
[1737068702236,0.60529,3304.7,3304.6,41.4053]
[1737068702439,0.60529,3304.7,3304.6,40.8]
[1737068702741,3.2078,3304.8,3304.2,6.77933332]
[1737068702742,3.2078,3304.8,3304.3,1.83535]
[1737068702948,0.60534,3304.4,3304.3,0.60535]
[1737068703146,0.60534,3304.4,3303.9,1.6083]
[1737068703147,3.2078,3304.4,3303.9,1.6083]
[1737068703340,2.34153332,3304.8,3303.9,2.64672]
[1737068703341,3.81321,3304.0,3303.9,2.64672]
[1737068703650,3.81321,3304.0,3303.9,42.8413]
[1737068703944,3.81321,3304.0,3303.9,43.44673]
[1737068704246,3.81321,3304.0,3303.9,42.8413]
[1737068704745,3.81321,3304.0,3303.9,42.63543]
[1737068705142,3.81321,3304.0,3303.9,42.03]
[1737068705351,3.81321,3304.0,3303.9,42.63543]
[1737068705849,3.81321,3304.0,3303.9,42.03]
[1737068706349,3.81321,3304.0,3303.9,42.63543]
[1737068706548,3.81321,3304.0,3303.9,42.03]
[1737068706946,1.6123,3304.3,3303.9,42.63543]
[1737068707148,1.37997,3304.3,3304.2,0.60538]
[1737068707349,0.60538,3304.3,3304.2,0.60536]
[1737068707645,0.60541,3304.0,3303.9,42.03]
[1737068707851,3.81321,3304.0,3303.9,42.03]
[1737068708046,3.81321,3304.0,3303.9,40.8]
[1737068710854,3.81321,3304.0,3303.9,41.40543]
[1737068711952,3.81321,3304.0,3303.9,40.8]
[1737068712759,2.11903,3303.9,3303.5,1.231]
[1737068712960,0.60549,3303.7,3303.6,0.60547]
[1737068713158,0.60548,3303.8,3303.7,0.60545]
[1737068713464,0.60548,3303.8,3303.7,41.40545]
[1737068713660,0.60548,3303.8,3303.7,40.8]
[1737068714067,3.2078,3304.5,3304.2,0.60537]
[1737068714266,3.2078,3304.5,3304.3,3.57253332]
[1737068714457,3.2078,3304.5,3304.4,0.8383]
[1737068714660,3.2078,3304.5,3304.3,1.231]
[1737068714958,0.60534,3304.4,3304.3,1.231]
[1737068715365,1.42254,3304.4,3304.3,42.031]
[1737068715755,1.42254,3304.4,3304.3,42.63636]
[1737068715962,1.42254,3304.4,3304.3,42.031]
[1737068716358,1.6011,3304.4,3303.6,1.231]
[1737068716556,0.60547,3303.7,3303.6,1.231]
[1737068716971,0.60547,3303.7,3303.6,42.031]
[1737068718261,3.2078,3304.1,3304.0,0.60541]
[1737068718467,0.60545,3303.9,3303.8,0.60544]
[1737068718662,0.60547,3303.8,3303.7,0.60547]
[1737068719067,2.34153332,3303.8,3302.9,3.2078]
[1737068719367,0.60557,3303.2,3303.1,1.39396]
[1737068719756,0.60557,3303.2,3303.1,2.62496]
[1737068719961,0.60557,3303.2,3303.1,0.7884]
[1737068720265,0.60558,3303.1,3303.0,1.231]
[1737068720465,1.6433,3303.1,3302.8,8.34228769]
[1737068720664,0.60562,3302.9,3302.8,8.34228769]
[1737068721168,0.60562,3302.9,3302.8,1.231]
[1737068721563,0.6056,3303.1,3303.0,0.60559]
[1737068721763,0.60562,3303.0,3302.9,0.6056]
[1737068722165,3.2078,3303.4,3302.8,3.57253332]
[1737068722366,0.60562,3302.9,3302.8,4.17816332]
[1737068722962,0.60562,3302.9,3302.8,44.97816332]
[1737068723270,0.60562,3302.9,3302.8,42.031]
[1737068723974,0.60567,3302.6,3302.1,10.68657575]
[1737068724271,0.60574,3302.2,3302.1,3.57253332]
[1737068724467,0.60574,3302.2,3302.1,44.37253332]
[1737068724666,3.2078,3302.5,3302.1,43.14153332]
[1737068724864,3.2078,3302.5,3302.2,1.238]
[1737068725271,0.60573,3302.3,3302.2,1.238]
[1737068726269,0.60574,3302.2,3302.1,40.8]
[1737068726472,0.8053,3302.2,3301.4,1.6275]
[1737068726666,0.6058,3301.9,3301.4,1.6275]
[1737068726976,1.6803,3302.1,3301.4,3.96903332]
[1737068727177,4.0131,3302.2,3301.7,2.34153332]
[1737068727371,0.60577,3302.1,3301.8,0.8249]
[1737068727678,3.2078,3302.2,3302.0,0.60577]
[1737068727871,0.60576,3302.1,3301.8,2.0629]
[1737068728069,0.60576,3302.1,3301.9,0.6058]
[1737068728272,0.60576,3302.1,3302.0,0.8454]
[1737068728467,3.2078,3302.2,3302.1,0.60576]
[1737068728674,3.2078,3302.2,3302.0,3.97143332]
[1737068728867,0.60576,3302.1,3302.0,4.57720332]
[1737068729065,3.2078,3302.2,3302.1,0.60576]
[1737068730164,3.2078,3302.2,3302.0,3.97143332]
[1737068730471,0.60583,3301.8,3301.6,2.34153332]
[1737068730673,3.2078,3302.2,3301.7,2.8416]
[1737068730871,0.60578,3302.0,3301.7,3.6779]
[1737068731080,0.60577,3302.1,3301.9,2.94732332]
[1737068731374,0.60578,3302.0,3301.9,2.34153332]
[1737068731578,0.60578,3302.0,3301.9,2.94733332]
[1737068731783,0.60578,3302.1,3301.9,2.94733332]
[1737068731980,0.60578,3302.1,3302.0,0.60578]
[1737068732181,3.2078,3302.2,3301.9,43.14153332]
[1737068732374,0.60578,3302.0,3301.9,43.14153332]
[1737068732575,0.60578,3302.0,3301.9,43.74733332]
[1737068732781,0.60578,3302.0,3301.9,43.14153332]
[1737068732982,0.60578,3302.0,3301.9,43.74733332]
[1737068733275,0.60573,3302.3,3302.0,0.60578]
[1737068733481,0.60575,3302.2,3302.1,0.60575]
[1737068733677,0.60578,3302.0,3301.9,40.8]
[1737068733875,0.60578,3302.0,3301.9,42.038]
[1737068735478,0.60578,3302.0,3301.9,40.8]
[1737068735681,0.7818,3302.3,3301.7,0.8134]
[1737068735980,0.60591,3301.3,3301.2,1.5934]
[1737068736187,0.60591,3301.3,3301.2,43.6314]
[1737068736480,0.60591,3301.3,3301.2,42.3934]
[1737068736675,0.60591,3301.3,3301.2,43.6314]
[1737068736874,3.2078,3301.6,3301.2,43.6314]
[1737068737079,3.2078,3302.0,3301.4,2.34153332]
[1737068737288,0.60587,3301.5,3301.4,2.34153332]
[1737068737597,3.2078,3301.6,3301.2,43.6314]
[1737068737883,0.60587,3301.5,3301.4,0.60588]
[1737068738180,3.2078,3301.6,3301.2,43.6314]
[1737068738386,0.6059,3301.4,3301.3,0.60591]
[1737068738682,0.60591,3301.3,3301.2,43.6314]
[1737068739981,0.60591,3301.3,3301.2,44.23733]
[1737068740178,0.60587,3301.5,3301.3,0.60591]
[1737068740384,0.7635,3302.0,3301.4,2.34153332]
[1737068740587,0.60587,3301.6,3301.5,0.60587]
[1737068741080,3.9713,3302.0,3301.4,2.34153332]
[1737068741281,0.60586,3301.6,3301.5,0.60586]
[1737068741889,0.60583,3301.8,3301.7,0.60582]
[1737068742381,3.9713,3302.0,3301.5,0.798]
[1737068742581,3.2078,3302.0,3301.7,2.34153332]
[1737068742785,3.2078,3302.0,3301.9,0.6058]
[1737068742981,3.2078,3302.0,3301.8,2.23981]
[1737068742982,0.6058,3301.9,3301.8,2.23981]
[1737068743287,0.6058,3301.9,3301.8,43.03981]
[1737068743685,0.6058,3301.9,3301.8,42.434]
[1737068743883,0.6058,3301.9,3301.8,40.8]
[1737068744079,3.2078,3302.0,3301.9,0.6058]
[1737068744284,0.60575,3302.3,3302.2,0.60573]
[1737068744892,0.60575,3302.3,3302.2,1.39453]
[1737068745292,0.60574,3302.2,3302.1,1.238]
[1737068745485,1.51432,3302.3,3301.5,1.238]
[1737068745685,0.60589,3301.4,3301.3,2.34153332]
[1737068745989,0.60595,3301.1,3301.0,2.34153332]
[1737068746189,0.60595,3301.1,3301.0,3.57953332]
[1737068746487,0.60595,3301.1,3301.0,2.34153332]
[1737068746685,0.60595,3301.1,3301.0,4.18549332]
[1737068747292,0.60595,3301.1,3301.0,3.57953332]
[1737068747887,0.60595,3301.1,3301.0,4.18549332]
[1737068748189,0.60595,3301.1,3301.0,3.57953332]
[1737068748387,0.60595,3301.1,3301.0,2.34153332]
[1737068748582,0.60596,3301.0,3300.9,40.8]
[1737068749490,3.81376,3301.0,3300.9,40.8]
[1737068751686,0.60606,3300.5,3300.4,2.94760332]
[1737068752087,0.60606,3300.6,3300.5,0.60604]
[1737068752289,0.60606,3300.6,3300.5,41.40604]
[1737068752793,0.606,3300.9,3300.8,0.60598]
[1737068752990,0.606,3300.9,3300.8,2.94753332]
[1737068753495,0.606,3300.9,3300.8,43.74753332]
[1737068753998,0.606,3300.9,3300.8,43.14153332]
[1737068754596,0.606,3300.9,3300.8,43.74753332]
[1737068754985,3.2078,3301.0,3300.8,43.14153332]
[1737068755198,3.2078,3301.0,3300.9,1.41858]
[1737068755699,1.5958,3301.8,3301.4,0.60588]
[1737068755894,0.60585,3301.7,3301.6,0.60585]
[1737068756193,3.55222016,3302.3,3301.8,0.6058]
[1737068756390,0.60581,3301.9,3301.8,0.60582]
[1737068756691,0.60583,3301.8,3301.7,0.60582]
[1737068756885,0.6058,3301.9,3301.8,0.6058]
[1737068757599,3.2078,3302.3,3301.8,40.8]
[1737068757897,3.2078,3302.3,3301.9,0.6058]
[1737068757898,0.60578,3302.0,3301.9,0.6058]
[1737068758891,0.60578,3302.0,3301.9,0.7849]
[1737068759590,0.60578,3302.0,3301.9,1.3907]
[1737068760090,0.60578,3302.0,3301.9,0.7849]
[1737068762397,0.60578,3302.0,3301.9,1.3907]
[1737068762692,0.60578,3302.0,3301.9,0.7849]
[1737068762896,0.60578,3302.0,3301.9,1.3907]
[1737068763198,0.60578,3302.0,3301.9,0.7849]
[1737068763493,0.60578,3302.0,3301.9,1.3907]
[1737068764295,0.60578,3302.0,3301.9,0.7849]
[1737068764992,0.6058,3301.9,3301.8,40.8]
[1737068765196,0.6058,3301.9,3301.8,42.041]
[1737068765389,0.60579,3302.0,3301.9,0.60579]
[1737068765994,0.60579,3302.0,3301.9,41.40579]
[1737068766400,3.55222016,3302.6,3301.9,46.34933332]
[1737068766584,3.55222016,3302.6,3302.5,2.34153332]
[1737068766788,4.15789016,3302.6,3302.5,2.34153332]
[1737068766990,0.60573,3302.3,3302.2,2.34153332]
[1737068767194,3.81353,3302.3,3302.2,43.14153332]
[1737068767399,3.81353,3302.3,3302.2,1.24]
[1737068767596,0.60573,3302.3,3302.2,3.58153332]
[1737068767799,0.60569,3302.6,3302.4,0.60569]
[1737068767999,0.60569,3302.6,3302.5,2.34153332]
[1737068768400,0.60569,3302.6,3302.5,2.94722332]
[1737068768699,0.60569,3302.6,3302.5,2.34153332]
[1737068768896,3.81344,3302.8,3302.7,0.60565]
[1737068769395,0.60565,3302.7,3302.6,1.43486]
[1737068770291,0.60564,3302.8,3302.7,0.60563]
[1737068773995,0.781,3302.9,3302.6,0.8292]
[1737068774201,0.60561,3303.0,3302.9,0.60559]
[1737068774396,6.76002016,3303.2,3303.1,0.60558]
[1737068774604,4.73629354,3303.4,3303.1,3.2078]
[1737068774799,4.73629354,3303.4,3303.3,5.28860664]
[1737068775003,3.45529354,3303.7,3303.6,0.60549]
[1737068775203,3.45529354,3303.7,3303.6,4.18702332]
[1737068775502,3.45529354,3303.7,3303.6,2.34153332]
[1737068775698,0.60552,3303.4,3303.3,40.8]
[1737068775904,0.60554,3303.3,3303.2,4.4478]
[1737068776306,0.60556,3303.2,3303.1,43.14153332]
[1737068776597,0.60556,3303.2,3303.1,44.98711332]
[1737068776800,0.60556,3303.2,3303.1,3.58153332]
[1737068777201,0.60556,3303.2,3303.1,44.38153332]
[1737068777402,3.2078,3303.4,3303.1,44.98711332]
[1737068777702,1.6475,3303.6,3303.1,44.38153332]
[1737068777900,0.60551,3303.5,3303.4,2.34153332]
[1737068781508,0.8079,3303.8,3303.7,0.60547]
[1737068781705,0.8079,3303.8,3303.7,2.94700332]
[1737068781909,1.41335,3303.8,3303.7,2.34153332]
[1737068782511,1.41335,3303.8,3303.7,2.94700332]
[1737068782811,1.41335,3303.8,3303.7,2.34153332]
[1737068784918,1.41335,3303.8,3303.7,2.94700332]
[1737068785317,0.8079,3303.8,3303.7,2.94700332]
[1737068785619,0.6056,3303.0,3302.9,0.6056]
[1737068785926,0.6056,3303.0,3302.9,1.234]
[1737068786515,0.6056,3303.1,3302.9,1.234]
[1737068786720,0.60559,3303.1,3303.0,0.60559]
[1737068787019,0.60559,3303.1,3303.0,2.94712332]
[1737068787324,1.39027,3303.2,3303.1,0.60558]
[1737068788223,0.7847,3303.2,3303.0,2.34153332]
[1737068788419,0.7847,3303.2,3303.0,2.94712332]
[1737068788420,0.60558,3303.1,3303.0,2.94712332]
[1737068788921,0.60558,3303.1,3303.0,43.74712332]
[1737068789324,0.7847,3303.2,3303.1,0.60558]
[1737068789618,1.39026,3303.2,3303.1,0.60558]
[1737068789821,0.60558,3303.1,3303.0,43.14153332]
[1737068790025,1.42528,3303.1,3303.0,43.14153332]
[1737068790217,1.42528,3303.1,3303.0,43.74713332]
[1737068790914,0.7847,3303.2,3303.1,0.60558]
[1737068793127,3.2078,3303.6,3303.5,0.6055]
[1737068793128,3.81329,3303.6,3303.5,0.6055]
[1737068793431,3.2078,3303.6,3303.5,2.94703332]
[1737068793634,0.8852,3303.7,3303.6,0.60549]
[1737068793831,0.8852,3303.7,3303.2,0.60556]
[1737068793832,0.60549,3303.6,3303.2,0.60556]
[1737068794133,0.60549,3303.6,3303.3,0.60552]
[1737068794134,0.60553,3303.4,3303.3,0.60552]
[1737068794323,4.143,3303.5,3303.4,0.60552]
[1737068794324,4.74852,3303.5,3303.4,0.60552]
[1737068795132,0.8852,3303.7,3303.4,2.34153332]
[1737068795333,3.2078,3303.9,3303.4,2.34153332]
[1737068795527,3.2078,3303.9,3303.8,2.94698332]
[1737068795830,3.2078,3303.9,3303.8,4.18098332]
[1737068796038,3.2078,3303.9,3303.8,44.98098332]
[1737068798035,1.8493,3304.6,3303.8,44.37553332]
[1737068798235,0.9141,3304.6,3304.5,2.94685332]
[1737068799638,0.9141,3304.6,3304.5,43.74685332]
[1737068800227,3.2078,3305.0,3304.5,43.74685332]
[1737068800228,3.2078,3305.0,3304.5,43.14153332]
[1737068800432,3.2078,3305.0,3304.9,2.94678332]
[1737068801239,0.9491,3305.3,3305.2,0.60519]
[1737068801536,0.9491,3305.3,3305.2,2.94672332]
[1737068802134,0.9491,3305.3,3305.2,43.74672332]
[1737068804338,0.9491,3305.3,3305.2,44.97972332]
[1737068804737,0.60521,3305.1,3305.0,2.34153332]
[1737068804940,0.9491,3305.3,3305.0,2.34153332]
[1737068805438,3.2078,3305.9,3305.4,0.60516]
[1737068805635,2.35969,3305.8,3305.2,1.51299]
[1737068805841,2.35969,3305.8,3305.7,0.6051]
[1737068806037,2.35969,3305.8,3305.7,1.233]
[1737068806435,2.35969,3305.8,3305.7,42.033]
[1737068807043,3.2078,3305.9,3305.7,44.37453332]
[1737068807342,3.2078,3305.9,3305.8,0.60508]
[1737068807542,3.2078,3305.9,3305.8,1.53628]
[1737068808237,0.60504,3306.1,3306.0,0.60504]
[1737068808544,0.9143,3306.2,3306.0,2.94657332]
[1737068808742,0.60503,3306.1,3306.0,2.94658332]
[1737068809043,1.51932,3306.2,3306.0,2.34153332]
[1737068809236,1.51932,3306.2,3306.1,0.60503]
[1737068810942,1.51932,3306.2,3306.0,2.94657332]
[1737068811741,0.60503,3306.1,3306.0,2.94657332]
[1737068812439,0.60503,3306.1,3306.0,2.34153332]
[1737068813145,0.9143,3306.2,3306.0,2.34153332]
[1737068813347,0.9143,3306.2,3306.1,0.60503]
[1737068813549,0.9143,3306.2,3305.9,2.34153332]
[1737068813740,0.60505,3306.0,3305.9,2.34153332]
[1737068814047,1.51932,3306.2,3306.1,0.60503]
[1737068814642,0.9143,3306.2,3305.9,2.34153332]
[1737068814947,1.51932,3306.2,3306.1,0.60503]
[1737068815241,3.2078,3306.4,3305.9,2.34153332]
[1737068815242,3.2078,3306.4,3306.3,0.60499]
[1737068815441,3.2078,3306.4,3306.3,2.94652332]
[1737068816732,1.46896,3306.5,3306.4,0.60497]
[1737068817137,0.864,3306.5,3306.4,0.60497]
[1737068817438,0.864,3306.5,3306.4,1.49967]
[1737068817638,1.46896,3306.5,3306.4,0.8947]
[1737068817835,5.864,3306.5,3305.8,2.34153332]
[1737068818041,0.60507,3305.9,3305.8,2.34153332]
[1737068818234,0.60512,3305.6,3305.5,2.34153332]
[1737068818542,3.81292,3305.6,3305.5,2.34153332]
[1737068819444,3.2078,3305.6,3305.2,2.34153332]
[1737068819645,0.60518,3305.3,3305.2,2.34153332]
[1737068821043,1.51358,3305.3,3305.2,2.34153332]
[1737068826649,0.01358,3305.3,3305.2,2.34153332]
[1737068826958,0.60518,3305.3,3305.2,2.34153332]
[1737068827145,0.60518,3305.3,3305.2,43.14153332]
[1737068827752,0.60518,3305.3,3305.2,43.74672332]
[1737068828756,0.60518,3305.3,3305.2,43.14153332]
[1737068828957,0.60518,3305.3,3305.2,44.04063332]
[1737068829158,0.60516,3305.5,3305.2,44.04063332]
[1737068829454,3.2078,3306.6,3305.5,1.51285]
[1737068829755,3.2078,3306.2,3305.9,2.34153332]
[1737068830061,0.60505,3306.0,3305.9,3.57153332]
[1737068831748,0.60505,3306.0,3305.9,4.17660332]
[1737068832062,2.41041,3306.5,3305.9,4.17660332]
[1737068832063,1.51232,3306.7,3305.9,5.91306664]
[1737068832353,0.60499,3306.4,3306.3,0.60497]
[1737068832659,0.60499,3306.4,3306.3,41.40497]
[1737068832854,0.60499,3306.4,3306.3,40.8]
[1737068833059,0.60499,3306.4,3306.3,41.40499]
[1737068835056,0.60491,3306.8,3306.7,0.60492]
[1737068835254,0.9042,3307.3,3306.7,3.57153332]
[1737068835454,0.60481,3307.3,3307.2,2.94636332]
[1737068835653,3.2078,3307.6,3307.2,2.34153332]
[1737068835853,0.60481,3307.3,3307.2,2.94636332]
[1737068836252,0.60481,3307.3,3307.2,0.60483]
[1737068836456,0.6048,3307.4,3307.3,0.6048]
[1737068836657,2.34153332,3307.7,3306.9,3.2078]
[1737068836856,0.6048,3307.4,3307.3,0.6048]
[1737068837058,2.34153332,3307.7,3307.3,41.40481]
[1737068837253,0.6048,3307.4,3307.3,41.40481]
[1737068837456,0.6048,3307.4,3307.3,40.8]
[1737068837860,2.94633332,3307.4,3307.3,40.8]
[1737068838064,3.89743332,3307.4,3307.3,40.8]
[1737068838263,3.89743332,3307.4,3306.9,0.9318]
[1737068838464,2.34153332,3307.1,3306.8,0.891]
[1737068838762,1.51426,3307.0,3306.9,1.23]
[1737068838957,2.39356,3307.0,3306.9,1.23]
[1737068841567,5.60136,3307.0,3306.9,1.23]
[1737068842760,0.60494,3306.6,3306.5,1.46295]
[1737068842965,0.60494,3306.6,3306.5,2.69295]
[1737068843463,2.34153332,3306.8,3306.5,2.088]
[1737068843766,0.60493,3306.7,3306.6,0.60492]
[1737068843963,2.34153332,3306.8,3306.5,2.088]
[1737068844161,4.9965,3307.0,3306.5,2.088]
[1737068844470,3.2078,3307.0,3306.9,0.60488]
[1737068844870,0.8753,3307.3,3306.8,3.2078]
[1737068845171,0.60484,3307.2,3307.1,0.60483]
[1737068845464,0.60484,3307.2,3307.1,41.40483]
[1737068846165,3.81264,3307.2,3307.1,40.8]
[1737068846965,3.81264,3307.2,3307.1,41.15068512]
[1737068847273,0.60479,3307.5,3307.4,0.60477]
[1737068847470,2.34153332,3307.5,3307.4,1.57468512]
[1737068847672,6.15410332,3307.5,3307.4,1.57468512]
[1737068849066,6.15410332,3307.5,3307.4,3.30872895]
[1737068849263,6.15410332,3307.5,3307.4,1.71205171]
[1737068849468,11.15410332,3307.5,3307.4,1.71205171]
[1737068849664,11.15410332,3307.5,3307.4,0.95573694]
[1737068849873,11.15410332,3307.5,3307.4,1.71215593]
[1737068850063,11.15410332,3307.5,3307.4,0.95573694]
[1737068850267,0.60488,3306.9,3306.8,0.37267724]
[1737068850470,6.15421332,3306.9,3306.8,0.75644575]
[1737068850870,1.51237,3306.6,3306.1,41.17300543]
[1737068851169,3.81281,3306.2,3306.1,40.8]
[1737068852577,6.15434332,3306.2,3306.1,40.8]
[1737068852776,6.15434332,3306.2,3305.9,1.224]
[1737068853077,0.60505,3306.0,3305.9,1.224]
[1737068857082,0.60505,3306.0,3305.9,42.39698628]
[1737068857881,0.60505,3306.0,3305.9,42.024]
[1737068858281,0.60505,3306.0,3305.9,42.39698628]
[1737068858688,0.60505,3306.0,3305.9,42.39793804]
[1737068858881,0.60505,3306.0,3305.9,43.1545103]
[1737068859283,0.60505,3306.0,3305.9,42.78057226]
[1737068859582,0.60505,3306.0,3305.9,43.1545971]
[1737068860286,0.60505,3306.0,3305.9,43.75986143]
[1737068860484,0.60505,3306.0,3305.9,43.38583659]
[1737068861488,0.60505,3306.0,3305.9,1.735875]
[1737068861785,0.60505,3306.0,3305.9,1.36183659]
[1737068862183,0.60505,3306.0,3305.9,1.74015904]
[1737068862380,3.2078,3306.2,3305.9,1.74028051]
[1737068862688,0.60503,3306.1,3306.0,1.74028051]
[1737068864987,0.60503,3306.1,3306.0,0.98363681]
[1737068867680,0.60503,3306.1,3306.0,0.37832185]
[1737068867893,0.60503,3306.1,3306.0,1.85e-06]
[1737068868089,0.60514,3305.5,3305.4,41.6102]
[1737068868291,3.81294,3305.5,3305.4,42.97229222]
[1737068872388,0.60527,3304.8,3304.6,0.37395263]
[1737068872588,4.53874,3305.4,3304.5,0.37395263]
[1737068872589,5.54933332,3304.7,3304.5,0.37395263]
[1737068872792,0.60532,3304.5,3304.3,6.48653158]
[1737068872997,0.60534,3304.4,3304.3,6.48653158]
[1737068873388,0.60538,3304.2,3304.1,7.11404243]
[1737068873697,0.60538,3304.2,3304.1,4.32465623]
[1737068873698,6.15471332,3304.2,3304.1,4.32465623]
[1737068873895,6.15471332,3304.2,3304.1,3.16902623]
[1737068874197,0.60549,3303.6,3303.5,0.8904]
[1737068874397,3.81329,3303.6,3303.5,0.8904]
[1737068875193,3.2078,3303.6,3303.4,0.8651]
[1737068875389,0.60558,3303.1,3303.0,0.8904]
[1737068876703,0.60558,3303.1,3303.0,1.496]
[1737068877591,3.81338,3303.1,3303.0,0.8904]
[1737068878395,2.94711332,3303.1,3303.0,0.8904]
[1737068879902,2.94711332,3303.1,3303.0,1.23778569]
[1737068880704,2.94711332,3303.1,3303.0,0.34738569]
[1737068880995,2.94711332,3303.1,3303.0,0.34747117]
[1737068882401,2.34153332,3303.1,3302.8,41.6651]
[1737068882604,0.6056,3303.0,3302.9,0.34724223]